Cogmind - Beta 16.1 @@@ ROGUE MODE // 2026.03.16 @ 12:10:26 Player: Ceorik Result: Destroyed by G-73 Enforcer with Phase Gun Performance ------------- Evolutions (8) 4000 Regions Visited (15) 3000 Robots Destroyed (223) 1115 Value Destroyed (10255) 10255 Prototype IDs (35) 700 Alien Tech Used (0) 0 Bonus (5007) 5007 TOTAL SCORE: 24077 Bonus ------- High Alert Combat Kills 798 Follower Combat Kills 1119 Registered with UFD 300 Met Optimus in HQ 500 Met R17 at Cetus 500 Met R17 at Research 2000 Friendly Fire -210 Cogmind --------- Core Integrity 0/1450 Matter 260/300 Energy 57/100 System Corruption 17% Temperature Cool (9) Movement Core (50) Location -2/Testing Parts ------- > --- POWER (2) -------- (None) > --- PROPULSION (7) --- (None) > --- UTILITY (11) ----- (None) > --- WEAPON (3) ------- (None) > --- INVENTORY (5) ---- Advanced Signal Interpreter Improved Kinecellerator Variable Charge Gun Long-range Proton Cannon Peak State ------------ > --- POWER ------------ Quantum Reactor Light Quantum Reactor > --- PROPULSION ------- Flexi-carbon Leg Flexi-carbon Leg Flexi-carbon Leg Flexi-carbon Leg Flexi-carbon Leg Flexi-carbon Leg Flexi-carbon Leg > --- UTILITY ---------- Advanced Heat Sink Advanced Coolant Injector Large Storage Unit Machine Analyzer Layered Medium Armor Plating Layered Medium Armor Plating Centrium Light Armor Plating Centrium Medium Armor Plating Improved Hacking Suite Advanced Hacking Suite Improved System Shield > --- WEAPON ----------- Nova Cannon Enhanced Nova Cannon Plasma Lance > --- INVENTORY -------- Light Antimatter Reactor Light Antimatter Reactor Particle Reactor High-density Centrium Heavy Treads Flexi-carbon Leg Flexi-carbon Leg Advanced Signal Interpreter Improved Kinecellerator Variable Charge Gun Long-range Proton Cannon HERF Cannon [Rating: 146] Favorites ----------- Power Cooled Ion Engine Engine Cooled Ion Engine Power Core Reinforced Fission Core Reactor Light Antimatter Reactor Propulsion Flexi-carbon Leg Treads Light Treads Leg Flexi-carbon Leg Wheel Wheel Hover Unit Improved Antigrav System Utility Melee Analysis Suite Device Advanced Heat Sink Storage Large Storage Unit Processor Melee Analysis Suite Hackware Advanced Hacking Suite Protection Centrium Medium Armor Plating Weapon Axe Energy Gun Wave Gun Energy Cannon HERF Cannon Ballistic Gun Light Assault Rifle Ballistic Cannon Linear Accelerator Launcher Shock Bomb Launcher Impact Weapon Mace Slashing Weapon Axe Piercing Weapon Plasma Lance Build | -11 -10 -9 -8 -8 -8 -8 -6 -5 -4 -4 -4 -4 -3 -2 -2 ------- Run | Yrd Mat Mat Mat Sto Rec Scr Fac Fac Fac Ext Cet Arc Res Res Tes Slots Evolved 16 | . . 2 2 . . . 4 2 2 . . . 2 2 . Power 1 | . . . . . . . . . 1 . . . . . . Propulsion 5 | . . . 2 . . . . . 1 . . . . 2 . Utility 9 | . . 2 . . . . 3 2 . . . . 2 . . Weapon 1 | . . . . . . . 1 . . . . . . . . Parts Attached 241 | 8 6 24 20 13 1 5 6 23 30 38 5 10 41 3 8 Power 39 | 2 . 4 2 3 . . 1 1 5 7 . 1 10 1 2 Engine 12 | 2 . 3 1 3 . . 1 . 2 . . . . . . Core 9 | . . 1 1 . . . . . 1 5 . . 1 . . Reactor 18 | . . . . . . . . 1 2 2 . 1 9 1 2 Propulsion 86 | 2 1 6 15 7 . 2 . 11 13 12 1 1 10 1 4 Treads 8 | 2 . 4 1 . . . . . . . . . . . 1 Leg 66 | . . . 14 7 . 1 . 11 8 11 1 1 10 1 1 Wheel 4 | . 1 2 . . . 1 . . . . . . . . . Hover 8 | . . . . . . . . . 5 1 . . . . 2 Flight . | . . . . . . . . . . . . . . . . Utility 70 | 2 1 8 1 2 1 2 4 7 8 12 3 7 10 1 1 Device 24 | 1 . 2 . . . . 1 2 5 3 1 4 5 . . Storage 4 | 1 1 . 1 . . . . 1 . . . . . . . Processor 7 | . . 4 . . . . 1 1 . . . . . . 1 Hackware 9 | . . . . . 1 . 2 1 1 1 . 1 1 1 . Protection 26 | . . 2 . 2 . 2 . 2 2 8 2 2 4 . . Artifact . | . . . . . . . . . . . . . . . . Weapon 46 | 2 4 6 2 1 . 1 1 4 4 7 1 1 11 . 1 Energy Gun 10 | 2 1 . . . . . . . . 4 . 1 2 . . Energy Cannon 11 | . 1 1 . . . . . . 1 2 1 . 4 . 1 Ballistic Gun 1 | . 1 . . . . . . . . . . . . . . Ballistic Cannon 5 | . . 1 . . . . . . 1 . . . 3 . . Launcher 5 | . 1 1 . . . . . . 1 1 . . 1 . . Special Weapon . | . . . . . . . . . . . . . . . . Impact Weapon 10 | . . 3 1 1 . . . 4 1 . . . . . . Slashing Weapon 2 | . . . 1 . . . 1 . . . . . . . . Piercing Weapon 2 | . . . . . . 1 . . . . . . 1 . . Special Melee Weapon . | . . . . . . . . . . . . . . . . Unidentified Prototypes 12 | . . . . 2 . . . 2 1 1 1 . 4 . 1 Corrupted Parts 1 | . . . . . . . . . . 1 . . . . . System Corruption 1 | . . . . . . . . . . 1 . . . . . Parts Lost 97 | . 3 7 4 . . 1 . 6 19 11 2 1 21 . 22 Power 13 | . 1 2 . . . . . . 3 1 . . 4 . 2 Propulsion 34 | . 1 2 4 . . . . 1 7 3 . . 5 . 11 Utility 35 | . . 2 . . . . . 5 4 6 1 1 8 . 8 Weapon 15 | . 1 1 . . . 1 . . 5 1 1 . 4 . 1 Highest Loss Streak 20 | . 2 5 1 . . 1 . 2 16 8 2 1 14 . 20 To Critical Strikes 1 | . . . 1 . . . . . . . . . . . . Average Backups 13 | 2 7 12 14 14 15 14 13 12 12 11 14 14 14 9 8 Power 1 | . . . 1 1 2 2 2 4 2 . 1 1 2 2 2 Propulsion 2 | 1 2 3 1 3 3 2 2 2 4 4 3 2 2 2 1 Utility 5 | . 2 4 7 8 8 8 6 3 3 4 5 6 6 2 2 Weapon 2 | . 1 3 3 2 2 2 2 2 2 2 5 3 3 2 2 Tool/Special . | . . . . . . . . . . . . . . . . Unused Backups 47 | 2 1 8 5 4 . 6 1 . 1 9 1 . 6 . 3 Power 5 | . . . 1 . . . . . 1 . . . 2 . 1 Propulsion 18 | 2 1 4 . 2 . 1 . . . 6 . . 2 . . Utility 19 | . . 2 4 1 . 5 1 . . 3 . . 1 . 2 Weapon 4 | . . 1 . 1 . . . . . . 1 . 1 . . Tool/Special 1 | . . 1 . . . . . . . . . . . . . Average Slot Usage (%) 91 | . 99 95 98 100 100 97 72 90 87 84 88 87 85 92 73 Engine 4 | . 14 10 5 7 9 9 6 . 1 2 . . . . . Core 1 | . . . 3 1 . . . . 2 5 5 1 . . . Reactor 2 | . . . . . . . . 4 5 1 5 8 8 8 6 Treads 2 | . 25 11 2 . . . . . . . . . . . . Leg 18 | . . . 32 36 36 32 . 15 20 11 15 15 14 28 21 Wheel 1 | . 2 10 . . . . 6 1 . . . . . . . Hover 1 | . . . . . . . . . 3 11 . . . . . Device 10 | . 14 17 . . . . 1 6 15 11 20 19 20 8 5 Storage 7 | . 14 11 9 9 9 9 6 5 5 5 5 5 4 4 3 Processor 10 | . . 6 27 19 18 18 18 22 13 7 . . . . 1 Hackware 4 | . . . . . 8 6 12 6 1 . 5 5 13 11 9 Protection 7 | . . 6 . 7 . 2 6 7 3 13 15 15 9 17 11 Energy Gun 2 | . 12 . . . . . . . . 2 11 14 2 4 . Energy Cannon 2 | . 2 6 . . . . . . . 4 1 . 6 4 5 Ballistic Cannon 1 | . . . . . . . . . . 4 . . 3 . . Impact Weapon 5 | . . 11 11 9 9 9 6 10 9 . . . . . . Slashing Weapon 3 | . . . 6 9 9 8 5 5 2 . . . . . . Peak Build Rating 146 | 7 7 22 33 33 31 46 65 82 106 117 117 122 144 134 146 Average Rating 66 | 5 6 13 27 31 31 32 64 75 88 97 114 117 128 133 110 On Entrance 61 | . 7 7 22 33 31 31 42 65 80 64 109 115 122 122 134 Avg Prop Armor Cover (%) 11 | . 13 10 13 . . . . . . 2 . . . . . Naked Turns 9 | . . . . . . . . . . . . . . . 9 Heaviest Build 129 | 14 28 35 34 38 38 41 48 59 67 129 102 92 113 95 111 Greatest Support 140 | 40 40 20 60 60 56 56 35 75 115 125 90 90 113 140 140 Greatest Overweight (x) 5 | . 2 3 1 . . 1 1 1 1 1 1 1 1 . 5 Average Overweight (x) . | . . 2 . . . . 1 . . . . . . . . Largest Inventory Capacity 15 | 8 15 15 15 15 15 15 15 15 15 15 15 15 15 15 15 Average Capacity 14 | 7 10 15 15 15 15 15 15 15 15 15 15 15 15 15 14 Most Carried 15 | 5 9 15 15 15 15 15 15 15 15 15 15 15 15 11 12 Average Carried 13 | 2 7 12 14 14 15 14 14 13 12 11 14 14 14 8 9 Final Capacity 15 | 8 15 15 15 15 15 15 15 15 15 15 15 15 15 15 5 Final Carried 15 | 4 7 15 15 15 15 15 15 13 6 15 15 15 12 8 4 Class Distribution -------------------- 37% | Gladiator 20% | Scavenger-Tank 15% | Scavenger-Mutant 10% | Mutant 4% | Hacker-Gladiator 4% | Scavenger-Gladiator Dominant Class ---------------- Mutant | -10/Materials Scavenger-Mutant | -9/Materials Gladiator | -8/Materials Gladiator | -8/Storage Gladiator | -8/Recycling Gladiator | -8/Scraptown Hacker-Gladiator | -6/Factory Gladiator | -5/Factory Scavenger-Gladiator | -4/Factory Scavenger-Mutant | -4/Extension Scavenger-Tank | -4/Cetus Scavenger-Tank | -4/Archives Scavenger-Tank | -3/Research Scavenger-Tank | -2/Research Scavenger-Mutant | -2/Testing Resources | -11 -10 -9 -8 -8 -8 -8 -6 -5 -4 -4 -4 -4 -3 -2 -2 ----------- Run | Yrd Mat Mat Mat Sto Rec Scr Fac Fac Fac Ext Cet Arc Res Res Tes Matter Collected 4739 | 280 208 864 290 130 10 50 . 422 172 1067 199 173 874 . . Remotely . | . . . . . . . . . . . . . . . . Salvage Created 10894 | 201 188 786 965 1449 263 48 . 1154 611 1689 663 676 1764 . 437 Parts 402 | 12 10 42 44 66 16 1 . 36 13 55 22 17 50 . 18 Haulers Intercepted 7 | . . 2 1 2 . . . 2 . . . . . . . Recyclers Shooed 7 | . 2 . 1 . . . . . . 3 . . . . 1 Parts Field Recycled . | . . . . . . . . . . . . . . . . Retrieved Matter . | . . . . . . . . . . . . . . . . Parts Self-Destructed . | . . . . . . . . . . . . . . . . Prevented . | . . . . . . . . . . . . . . . . Parts Restored . | . . . . . . . . . . . . . . . . Kills | -11 -10 -9 -8 -8 -8 -8 -6 -5 -4 -4 -4 -4 -3 -2 -2 ------- Run | Yrd Mat Mat Mat Sto Rec Scr Fac Fac Fac Ext Cet Arc Res Res Tes Combat Hostiles Destroyed 155 | . 4 19 19 17 3 . . 13 13 22 8 4 29 . 4 Melee 51 | . . 2 10 15 3 . . 12 9 . . . . . . Guns 9 | . 4 . . . . . . . . 2 . 2 1 . . Cannons 41 | . . 2 . . . . . . . 10 . . 25 . 4 AOE 24 | . . 10 7 . . . . . 2 3 2 . . . . Classes Destroyed 20 | 2 3 5 1 . . 2 . 3 . 2 . . 2 . . Worker 9 | . . 2 2 3 . . . 1 . 1 . . . . . Builder 7 | . . 2 2 1 . . . . 1 1 . . . . . Tunneler 5 | 4 . . . . . . . . . 1 . . . . . Hauler 7 | . . 2 1 2 . . . 2 . . . . . . . Recycler 13 | 1 1 1 2 4 1 . . 1 . 1 . . . . 1 Mechanic 1 | . . . . . . . . 1 . . . . . . . Operator 17 | . 1 1 1 2 . . . 1 . 2 . 9 . . . Turret 1 | . . . . . . 1 . . . . . . . . . Watcher 8 | . . 3 1 1 . . . . . 1 1 . 1 . . Swarmer 25 | . 2 10 7 . . . . . 1 3 . . 2 . . Grunt 45 | . 2 2 5 9 . . . 4 4 8 . . 11 . . Brawler 4 | . . . . . . . . 1 . 2 . . 1 . . Duelist 1 | . . . . . . . . . . . . . 1 . . Sentry 38 | . . 7 6 6 3 . . 2 2 5 . 4 3 . . Demolisher 5 | . . . . . . . . . . 2 . . 3 . . Hunter 9 | . . . 1 2 . . . 2 2 . . . 1 . 1 Programmer 13 | . . . . . . . . 4 4 . . . 2 . 3 Behemoth 1 | . . . . . . . . . . 1 . . . . . Cetus Guard 8 | . . . . . . . . . . . 8 . . . . Striker 5 | . . . . . . . . . . . . . 5 . . Tinkerer 1 | . . . . . . 1 . . . . . . . . . Thug 1 | . . . . . . . . . . 1 . . . . . Best Kill Streak 9 | 3 3 6 6 9 1 2 . 2 3 8 5 3 7 . 4 Combat Bots Only 7 | . 2 4 6 5 1 . . 2 3 6 4 2 7 . 3 Max Kills in Single Turn 3 | 2 1 2 3 1 1 1 . 2 2 3 2 1 1 . 1 Gunslinging . | . . . . . . . . . . . . . . . . Exploded 3 | . . 2 3 . . . . . 2 2 2 . . . . Melee 2 | . . 1 1 1 1 . . 2 1 . . . . . . Uniques/NPCs Destroyed . | . . . . . . . . . . . . . . . . Combat | -11 -10 -9 -8 -8 -8 -8 -6 -5 -4 -4 -4 -4 -3 -2 -2 -------- Run | Yrd Mat Mat Mat Sto Rec Scr Fac Fac Fac Ext Cet Arc Res Res Tes Hostile Shots Fired 1576 | . 51 120 98 85 14 32 57 108 187 176 34 41 324 . 249 Missed 399 | . 7 29 25 25 3 10 28 23 41 40 17 9 89 . 53 Deflected 2 | . . . . . . . . . . 2 . . . . . Hits 1177 | . 44 91 73 60 11 22 29 85 146 136 17 32 235 . 196 Melee 28 | . . . . . . . . 4 . 5 . . 19 . . Projectile 1149 | . 44 91 73 60 11 22 29 81 146 131 17 32 216 . 196 AOE 21 | . . . . . . . . . . 6 . . 15 . . Critical Strikes 48 | . 1 5 5 2 . . . 3 2 4 2 . 10 . 14 Actively Blocked 2 | . . . . . . . . . 1 1 . . . . . Part Disruptions 1 | . . . . . . . . . 1 . . . . . . Damage Taken 25453 | . 645 1245 1054 934 167 274 238 1782 3503 3443 456 831 6350 . 4531 Core 3873 | . 179 266 139 160 45 7 66 228 698 152 . 24 455 . 1454 Absorbed by Shields 229 | . . . . . . . 86 . . 143 . . . . . Reduced by Siege Mode 189 | . . . . . . . . . . . . . . . 189 Redirected to Shielding 230 | . . . . . . . . . . 230 . . . . . Ignored by Resistances 193 | . . . . . . . . . . . . 24 169 . . Regen/Repaired (Parts) 916 | . . . . . . . . 109 . 235 140 152 280 . . Core Remaining (%) 56 | 100 28 33 . . . 36 92 77 . . . 24 65 . . Volleys Fired 452 | 10 28 49 6 . . . . . 10 107 21 72 108 . 41 Largest 3 | 2 2 1 1 . . . . . 1 3 2 3 3 . 2 Hottest 267 | 80 60 68 33 . . . . . 51 267 162 219 256 . 233 Shots Fired 632 | 20 52 49 6 . . . . . 9 128 25 136 150 . 57 Gun 260 | 20 52 . . . . . . . . 27 5 136 20 . . Cannon 326 | . . 38 . . . . . . 5 93 4 . 129 . 57 Launcher 46 | . . 11 6 . . . . . 4 8 16 . 1 . . Special . | . . . . . . . . . . . . . . . . Kinetic 118 | . 27 . . . . . . . 5 33 . . 53 . . Thermal 425 | 10 25 38 . . . . . . . 58 5 136 96 . 57 Explosive 21 | . . 11 6 . . . . . 4 . . . . . . Electromagnetic 68 | 10 . . . . . . . . . 37 20 . 1 . . Robot Hit Streak 19 | 6 7 4 2 . . . . . 4 19 2 9 18 . 5 Robot Miss Streak 7 | 2 6 4 1 . . . . . . 4 2 5 3 . 7 Penetration Max 1 | . . . . . . . . . . 1 . . . . . Secondary Targets . | . . . . . . . . . . . . . . . . Shots Hit Robots 708 | 12 31 52 57 79 15 5 . 68 78 94 5 82 106 . 24 Core Hits 322 | 6 12 23 21 27 4 2 . 22 26 58 28 38 48 . 7 Critical Kills 5 | . . 1 . . . . . . . 1 . . 3 . . Critical Parts Destroyed 15 | . . 3 4 2 . . . 3 3 . . . . . . Critical Strikes 87 | . . 4 9 10 . . . 26 12 10 . 6 10 . . Burn 11 | . . . . . . . . . . 3 . 6 2 . . Meltdown 5 | . . 1 . . . . . . . 1 . . 3 . . Blast 9 | . . . . . . . . . . 4 . . 5 . . Corrupt 2 | . . . . . . . . . . 2 . . . . . Smash 15 | . . 3 4 2 . . . 3 3 . . . . . . Sever 45 | . . . 5 8 . . . 23 9 . . . . . . Melee Attacks 426 | . . 40 70 102 16 9 5 82 102 . . . . . . Impact 197 | . . 40 30 18 3 4 1 26 75 . . . . . . Slashing 228 | . . . 40 84 13 4 4 56 27 . . . . . . Piercing 1 | . . . . . . 1 . . . . . . . . . Sneak Attacks 42 | . . 3 9 15 6 1 . 8 . . . . . . . Combat Hostiles 1 | . . 1 . . . . . . . . . . . . . Follow-up Attacks 65 | . . 4 8 10 2 1 . 20 20 . . . . . . Damage Inflicted 29855 | 158 314 2223 2790 3526 748 230 . 3379 3579 4339 1293 1830 4251 . 1195 Guns 3325 | 158 314 . . . . . . . . 534 18 1830 471 . . Cannons 7884 | . . 329 . . . . . . . 2492 109 . 3759 . 1195 Explosions 4173 | . . 650 413 . . . . . 651 1272 1166 . 21 . . Melee 14432 | . . 1244 2377 3526 748 230 . 3379 2928 . . . . . . Ramming 41 | . . . . . . . . . . 41 . . . . . Kinetic 2587 | . 105 . . . . . . . . 925 . . 1557 . . Thermal 8659 | 64 209 329 . . . . . . 371 1739 249 1830 2673 . 1195 Explosive 1343 | . . 650 413 . . . . . 280 . . . . . . Electromagnetic 2793 | 94 . . . . . . . . . 1634 1044 . 21 . . Impact 5359 | . . 1244 691 324 66 62 . 851 2121 . . . . . . Slashing 9073 | . . . 1686 3202 682 168 . 2528 807 . . . . . . Piercing . | . . . . . . . . . . . . . . . . Highest Corruption 22 | . . 1 . . . . . 10 14 22 22 22 4 . 17 Average Corruption 10 | . . 1 . . . . . 6 8 17 22 11 3 . 13 Corruption Purged 19 | . . . . . . . . . . . . 19 . . . Corruption Blocked . | . . . . . . . . . . . . . . . . Effects 185 | . . 4 . . . . . 25 19 76 20 23 13 . 5 Message Errors 42 | . . . . . . . . 7 2 18 4 7 2 . 2 Matter Fused 39 | . . 1 . . . . . 6 5 14 4 6 3 . . Heat Flow Errors 22 | . . . . . . . . 2 2 9 5 2 1 . 1 Energy Discharges 20 | . . . . . . . . 4 2 8 3 2 1 . . Parts Rejected 10 | . . 1 . . . . . 3 1 3 . 1 1 . . Parts Fused 2 | . . . . . . . . . . . . 1 1 . . Data Loss (minor) 18 | . . 1 . . . . . 3 1 9 1 1 2 . . Data Loss (major) 7 | . . . . . . . . . 2 3 1 . . . 1 Misfires 3 | . . . . . . . . . . 2 1 . . . . Alerts 3 | . . 1 . . . . . . . 1 1 . . . . Misdirections 4 | . . . . . . . . . 3 1 . . . . . Weapon Failures 15 | . . . . . . . . . 1 8 . 3 2 . 1 Overload Shots . | . . . . . . . . . . . . . . . . Overflow Damage 2661 | . . 282 498 324 110 14 . 383 522 227 15 . 171 . 115 Projectiles 457 | . . . 2 . . . . . . 162 7 . 171 . 115 Explosions 349 | . . 30 45 . . . . . 201 65 8 . . . . Melee 1855 | . . 252 451 324 110 14 . 383 321 . . . . . . Knockbacks 37 | . . 4 3 1 . . . 4 10 4 . . 11 . . Impact 21 | . . 4 2 1 . . . 4 10 . . . . . . Kinetic 11 | . . . . . . . . . . 4 . . 7 . . Secondary 5 | . . . 1 . . . . . . . . . 4 . . Self-Inflicted Damage 652 | . . 7 121 . . . . . 436 88 . . . . . Shots 14 | . . 1 3 . . . . . 7 3 . . . . . Rammed 2 | . . . . . . . . . . 2 . . . . . Targets Rammed 3 | . . . . . . . . . . 3 . . . . . Kicked 1 | . . . . . . . . . . 1 . . . . . Crushed . | . . . . . . . . . . . . . . . . Highest Temperature 581 | 90 165 199 6 7 . . 3 189 207 396 169 366 354 . 581 Average Temperature 123 | 40 63 111 5 4 . . 3 80 106 118 62 133 114 . 214 Received Heat Transfer 3857 | . 105 453 261 414 27 72 99 324 312 499 . 126 940 . 225 Effects 9 | . . . . . . . . . . 1 . 1 1 . 6 Shutdowns 5 | . . . . . . . . . . 1 . 1 1 . 2 Energy Bleed 1 | . . . . . . . . . . . . . . . 1 Damage (major) 1 | . . . . . . . . . . . . . . . 1 Damage (core) 2 | . . . . . . . . . . . . . . . 2 Siege Activations 1 | . . . . . . . . . . . . . . . 1 Total Turns 49 | . . . . . . . . . . . . . . . 49 Longest Duration 49 | . . . . . . . . . . . . . . . 49 Martial Activations . | . . . . . . . . . . . . . . . . Shielding Activations 1 | . . . . . . . . . . 1 . . . . . Total Turns 35 | . . . . . . . . . . 35 . . . . . Longest Duration 35 | . . . . . . . . . . 35 . . . . . Robots Disrupted . | . . . . . . . . . . . . . . . . Combat Hostiles . | . . . . . . . . . . . . . . . . Robots Corrupted 29 | . . 7 4 3 . . . 2 2 5 6 . . . . Combat Hostiles 22 | . . 4 2 2 . . . 1 2 5 6 . . . . Parts Fried 31 | . . 6 4 2 . . . 1 3 12 3 . . . . Impact Corruptions 48 | . . 14 11 3 . . . 9 11 . . . . . . Robots Melted 9 | . . 1 . . . . . . . 2 . 3 3 . . Combat Hostiles 8 | . . 1 . . . . . . . 2 . 2 3 . . Parts Melted 43 | . 1 1 . . . . . . 2 2 . 22 9 . 6 Heat Transferred 12126 | 150 475 703 . . . . . . 300 2387 137 4078 2934 . 962 Parts Sabotaged 1 | . . . . . . . . . . 1 . . . . . Parts Stolen . | . . . . . . . . . . . . . . . . Parts Stripped . | . . . . . . . . . . . . . . . . Power Chain Reactions 7 | . . . . . . . . . . 6 1 . . . . Alert | -11 -10 -9 -8 -8 -8 -8 -6 -5 -4 -4 -4 -4 -3 -2 -2 ------- Run | Yrd Mat Mat Mat Sto Rec Scr Fac Fac Fac Ext Cet Arc Res Res Tes Maximum Alert Level 3 | . . 1 1 2 . . . . 1 3 2 1 1 . . Low Security (%) 69 | 100 100 82 77 33 100 . 100 100 75 3 . 72 85 100 100 Level 1 17 | . . 17 22 53 . . . . 24 31 . 27 14 . . Level 2 6 | . . . . 13 . . . . . 12 100 . . . . Level 3 6 | . . . . . . . . . . 52 . . . . . Level 4 . | . . . . . . . . . . . . . . . . Level 5 . | . . . . . . . . . . . . . . . . High Security . | . . . . . . . . . . . . . . . . Max Security . | . . . . . . . . . . . . . . . . Peak Influence 998 | 10 55 224 362 421 167 . 60 148 345 998 568 238 280 151 78 Initial 548 | . . . 91 20 157 . . . 56 165 548 198 33 151 78 Average 189 | 1 8 137 184 253 115 . 15 80 121 637 513 174 57 149 29 Influence Increases 7046 | 25 110 807 678 778 188 . 79 522 782 1734 194 155 811 . 183 Destroy 0b10 Robot/C 3600 | . 80 380 380 340 60 . . 260 260 940 160 80 580 . 80 Destroy 0b10 Robot/NC 350 | 25 10 55 45 65 5 . . 30 5 50 5 45 5 . 5 Destroy Leader 712 | . 20 120 94 106 . . . 74 60 96 . . 132 . 10 Allied During Kill 383 | . . . . . . . . . . 383 . . . . . Successful Hack 161 | . . 33 15 27 3 . . 6 4 64 5 . . . 4 Select Force Hacks 120 | . . . . . 120 . . . . . . . . . . Disable Machine 495 | . . 90 45 120 . . . . 120 45 . 30 30 . 15 Destroy Structure 490 | . . 39 54 . . . 4 2 138 96 24 . 64 . 69 Partial Spotted 30 | . . . . 15 . . . . . 15 . . . . . Lose Combat Pursuer 705 | . . 90 45 105 . . 75 150 195 45 . . . . . Influence Decreases 7029 | 25 110 589 847 421 535 59 79 407 558 1094 677 562 630 129 307 Entered New Map 1664 | . . . 127 29 249 59 . . 59 174 431 298 56 119 63 Time Decay 3899 | 25 90 519 380 392 286 . 79 347 309 510 206 254 364 10 128 Lost Part 846 | . 20 70 40 . . . . 60 190 110 20 10 210 . 116 Lost Ally 320 | . . . . . . . . . . 300 20 . . . . Purge Threat 300 | . . . 300 . . . . . . . . . . . . Squads Dispatched 26 | . . . 2 2 . . . 4 2 5 . . 8 . 3 Investigation 2 | . . . . . . . . . . . . . 2 . . Extermination 5 | . . . . . . . . 2 2 . . . . . 1 Reinforcement 16 | . . . 2 2 . . . 2 . 2 . . 6 . 2 Assault 3 | . . . . . . . . . . 3 . . . . . Garrison . | . . . . . . . . . . . . . . . . Intercept . | . . . . . . . . . . . . . . . . Searches Triggered . | . . . . . . . . . . . . . . . . Construction Impeded 2 | . . . . . . . . . . 1 . . . . 1 Haulers Reinforced 1 | . . . . . . . . 1 . . . . . . . Active Scanning Responses . | . . . . . . . . . . . . . . . . Cargo Convoy Interrupts . | . . . . . . . . . . . . . . . . Stealth | -11 -10 -9 -8 -8 -8 -8 -6 -5 -4 -4 -4 -4 -3 -2 -2 --------- Run | Yrd Mat Mat Mat Sto Rec Scr Fac Fac Fac Ext Cet Arc Res Res Tes Distress Signals 31 | . 1 4 5 1 . . . . 4 2 2 1 10 . 1 Communications Jammed . | . . . . . . . . . . . . . . . . Distress Signals . | . . . . . . . . . . . . . . . . Times Spotted 336 | . 8 31 24 31 1 22 9 25 28 61 10 22 46 . 18 Peak Tracking Total 9 | . 3 6 7 6 1 5 6 6 9 7 5 1 7 . 9 Tactical Retreats 28 | . . 4 2 6 . . 2 6 5 3 . . . . . Traps | -11 -10 -9 -8 -8 -8 -8 -6 -5 -4 -4 -4 -4 -3 -2 -2 ------- Run | Yrd Mat Mat Mat Sto Rec Scr Fac Fac Fac Ext Cet Arc Res Res Tes Traps Triggered 14 | . . 2 . . . . . 3 4 4 . . 1 . . Indirectly . | . . . . . . . . . . . . . . . . Trap Hack Attempts . | . . . . . . . . . . . . . . . . Triggered . | . . . . . . . . . . . . . . . . Disarmed 1 | . . . . . . . . . . . . . . . 1 Reprogrammed . | . . . . . . . . . . . . . . . . Reused . | . . . . . . . . . . . . . . . . Traps Extracted . | . . . . . . . . . . . . . . . . Installed . | . . . . . . . . . . . . . . . . Triggered . | . . . . . . . . . . . . . . . . Machines | -11 -10 -9 -8 -8 -8 -8 -6 -5 -4 -4 -4 -4 -3 -2 -2 ---------- Run | Yrd Mat Mat Mat Sto Rec Scr Fac Fac Fac Ext Cet Arc Res Res Tes Machines Disabled 35 | . . 6 3 8 . 1 . . 8 4 . 2 2 . 1 Max in Single Turn 6 | . . 2 1 1 . 1 . . 6 1 . 1 1 . 1 Garrison Access 1 | . . . . . . . . . . . . . 1 . . Machines Repaired . | . . . . . . . . . . . . . . . . Machines Dismantled . | . . . . . . . . . . . . . . . . Machines Sabotaged . | . . . . . . . . . . . . . . . . Overloaded Fab Kills . | . . . . . . . . . . . . . . . . Hacking | -11 -10 -9 -8 -8 -8 -8 -6 -5 -4 -4 -4 -4 -3 -2 -2 --------- Run | Yrd Mat Mat Mat Sto Rec Scr Fac Fac Fac Ext Cet Arc Res Res Tes Machines Accessed 81 | . 4 11 7 6 10 5 3 4 7 15 2 . 2 . 5 Terminals 53 | . 3 9 4 5 6 . 1 1 5 13 2 . . . 4 Fabricators 3 | . . . . . . . 1 1 . . . . 1 . . Repair Stations 3 | . . . . . . . . 1 2 . . . . . . Recycling Units 12 | . 1 2 2 1 4 . . . . 2 . . . . . Scanalyzers 4 | . . . 1 . . . 1 1 . . . . . . 1 Garrison Access 1 | . . . . . . . . . . . . . 1 . . Total Hacks 216 | . 9 31 22 16 23 35 6 12 11 32 3 . 3 . 13 Successful 135 | . 5 16 13 9 14 35 5 10 4 12 2 . 2 . 8 Failed 77 | . 4 15 8 6 9 . . 1 7 20 1 . 1 . 5 Catastrophic 6 | . 1 . . 1 . . . . . 3 1 . . . . Database Lockouts 4 | . . . 1 1 . . 1 1 . . . . . . . Manual 83 | . 5 17 9 14 11 . 2 2 3 11 . . . . 9 Terminals 138 | . 7 27 15 15 14 . 2 5 8 30 3 . . . 12 Fabricators 3 | . . . . . . . 1 1 . . . . 1 . . Repair Stations 6 | . . . . . . . . 3 3 . . . . . . Recycling Units 23 | . 2 4 5 1 9 . . . . 2 . . . . . Scanalyzers 9 | . . . 2 . . . 3 3 . . . . . . 1 Garrison Access 2 | . . . . . . . . . . . . . 2 . . Terminal Hacks 76 | . 1 7 5 5 2 35 1 4 3 7 2 . . . 4 Record 37 | . . . . . . 34 . 1 . . 2 . . . . Robot Analysis 8 | . . 4 . 2 . . . . 1 1 . . . . . Prototype ID Bank 4 | . 1 . 1 . 1 . . . . 1 . . . . . Open Door 8 | . . . . 2 . . . . 1 5 . . . . . Open DSF 1 | . . . . . . . . . 1 . . . . . . Branch Access Points 2 | . . 1 1 . . . . . . . . . . . . Emergency Access Points 1 | . . . . . . . 1 . . . . . . . . Alert Level 6 | . . 2 1 . 1 . . 1 . . . . . . 1 Unreport Threat 2 | . . . 2 . . . . . . . . . . . . Locate Traps 1 | . . . . 1 . . . . . . . . . . . Disarm Traps 1 | . . . . . . . . . . . . . . . 1 Patrol Status 1 | . . . . . . . . 1 . . . . . . . Recall Reinforcements 1 | . . . . . . . . . . . . . . . 1 Zone Layout 2 | . . . . . . . . 1 . . . . . . 1 Proto ID Catalog 1 | . . . . . . 1 . . . . . . . . . Fabricator Hacks 3 | . . . . . . . 1 1 . . . . 1 . . Network Status 1 | . . . . . . . . . . . . . 1 . . Build 2 | . . . . . . . 1 1 . . . . . . . Repair Station Hacks 2 | . . . . . . . . 2 . . . . . . . Scan Component 1 | . . . . . . . . 1 . . . . . . . Repair 1 | . . . . . . . . 1 . . . . . . . Recycling Unit Hacks 16 | . 2 3 4 1 5 . . . . 1 . . . . . Report Inventory 11 | . 1 2 2 1 4 . . . . 1 . . . . . Retrieve Components 5 | . 1 1 2 . 1 . . . . . . . . . . Scanalyzer 6 | . . . 2 . . . 2 2 . . . . . . . Retrieve Study 6 | . . . 2 . . . 2 2 . . . . . . . Garrison Access Hacks 1 | . . . . . . . . . . . . . 1 . . Seal Access 1 | . . . . . . . . . . . . . 1 . . Unauthorized Hacks 31 | . 2 6 2 3 7 . 1 1 1 4 . . . . 4 Terminals 27 | . 2 6 2 3 3 . 1 1 1 4 . . . . 4 Assimilate 1 | . . . . . . . . . . . . . . . 1 Botnet 25 | . 2 6 2 3 3 . 1 1 1 4 . . . . 2 Detonate 1 | . . . . . . . . . . . . . . . 1 Fabricators . | . . . . . . . . . . . . . . . . Repair Stations . | . . . . . . . . . . . . . . . . Recycling Units 4 | . . . . . 4 . . . . . . . . . . Tunnel 4 | . . . . . 4 . . . . . . . . . . Scanalyzers . | . . . . . . . . . . . . . . . . Garrison Access . | . . . . . . . . . . . . . . . . Data Cores Recovered 2 | . . 1 . . . . . . . 1 . . . . . Used 1 | . . 1 . . . . . . . . . . . . . Hacking Detections 55 | . 4 10 5 3 7 . 2 1 6 11 2 . . . 4 Full Trace Events . | . . . . . . . . . . . . . . . . Feedback Events . | . . . . . . . . . . . . . . . . Feedback Blocked . | . . . . . . . . . . . . . . . . Robot Schematics Acquired . | . . . . . . . . . . . . . . . . Robots Built 4 | . . . . . . . 4 . . . . . . . . Authchips . | . . . . . . . . . . . . . . . . Time 81 | . . . . . . . 81 . . . . . . . . Total Robot Build Rating 4 | . . . . . . . 4 . . . . . . . . Part Schematics Acquired . | . . . . . . . . . . . . . . . . Parts Built 2 | . . . . . . . . 2 . . . . . . . Authchips . | . . . . . . . . . . . . . . . . Time 117 | . . . . . . . . 117 . . . . . . . Total Part Build Rating 14 | . . . . . . . . 14 . . . . . . . Part Studies Acquired 6 | . . . 2 . . . 2 2 . . . . . . . Parts Repaired 1 | . . . . . . . . 1 . . . . . . . Time 38 | . . . . . . . . 38 . . . . . . . Parts Recycled . | . . . . . . . . . . . . . . . . Recycled Matter . | . . . . . . . . . . . . . . . . Retrieved Matter . | . . . . . . . . . . . . . . . . Retrieved Components 28 | . 4 7 14 . 3 . . . . . . . . . . Parts Scanalyzed . | . . . . . . . . . . . . . . . . Part Schematics Acquired . | . . . . . . . . . . . . . . . . Parts Damaged . | . . . . . . . . . . . . . . . . Bothacking | -11 -10 -9 -8 -8 -8 -8 -6 -5 -4 -4 -4 -4 -3 -2 -2 ------------ Run | Yrd Mat Mat Mat Sto Rec Scr Fac Fac Fac Ext Cet Arc Res Res Tes Used RIF Installer . | . . . . . . . . . . . . . . . . Robots Hacked . | . . . . . . . . . . . . . . . . Non-combat . | . . . . . . . . . . . . . . . . Combat . | . . . . . . . . . . . . . . . . Robot Hacks Applied . | . . . . . . . . . . . . . . . . Relay Couplers Released . | . . . . . . . . . . . . . . . . Fabnet Peak Effective % . | . . . . . . . . . . . . . . . . Robots Rewired 16 | . . . . . . . . . . 16 . . . . . Allies Hacked . | . . . . . . . . . . . . . . . . Hacks Repelled . | . . . . . . . . . . . . . . . . Allies | -11 -10 -9 -8 -8 -8 -8 -6 -5 -4 -4 -4 -4 -3 -2 -2 -------- Run | Yrd Mat Mat Mat Sto Rec Scr Fac Fac Fac Ext Cet Arc Res Res Tes Total Allies 26 | . . . . . . . 4 . . 22 . . . . . Largest Group 10 | . . . . . . . 4 . . 10 1 . . . . Highest-Rated Group 537 | . . . . . . . 24 . . 537 46 . . . . Highest-Rated Ally 159 | . . . . . . . 6 . . 159 46 . . . . Total Orders 1 | . . . . . . . 1 . . . . . . . . ROAM 1 | . . . . . . . 1 . . . . . . . . Ally Attacks 155 | . . . . . . . . . . 155 . . . . . Total Damage 4483 | . . . . . . . . . . 4483 . . . . . Kills 31 | . . . . . . . . . . 31 . . . . . Allies Corrupted 2 | . . . . . . . . . . 2 . . . . . Allies Melted 2 | . . . . . . 2 . . . . . . . . . Intel | -11 -10 -9 -8 -8 -8 -8 -6 -5 -4 -4 -4 -4 -3 -2 -2 ------- Run | Yrd Mat Mat Mat Sto Rec Scr Fac Fac Fac Ext Cet Arc Res Res Tes Active Infowar (turns) 4415 | 43 541 690 . . . . 240 891 721 1126 . . . . 163 Optics 1651 | . . . . . . . 240 891 520 . . . . . . Sensors 1686 | . . . . . . . . . 560 1126 . . . . . Traps 858 | . . . . . . . . 162 696 . . . . . . Seismic 1274 | 43 541 690 . . . . . . . . . . . . . Machine Analysis 163 | . . . . . . . . . . . . . . . 163 Robot Analysis Total 8 | . . 4 . 2 . . . . 1 1 . . . . . Derelict Logs Recovered . | . . . . . . . . . . . . . . . . Drone Launches . | . . . . . . . . . . . . . . . . Drone Recoveries . | . . . . . . . . . . . . . . . . Exploration | -11 -10 -9 -8 -8 -8 -8 -6 -5 -4 -4 -4 -4 -3 -2 -2 ------------- Run | Yrd Mat Mat Mat Sto Rec Scr Fac Fac Fac Ext Cet Arc Res Res Tes Turns Passed 13399 | 197 541 1516 883 933 638 1757 317 891 837 1396 429 548 2150 22 344 Spaces Moved 7966 | 93 297 831 478 534 529 1388 357 525 624 724 185 244 946 15 196 Core 23 | 10 . . . . . . . . . . . . . . 13 Treads 423 | 83 213 127 . . . . . . . . . . . . . Legs 5374 | . . . 478 534 529 1195 . 275 452 366 185 244 946 15 155 Wheels 1588 | . 84 704 . . . 193 357 250 . . . . . . . Hover 558 | . . . . . . . . . 172 358 . . . . 28 Flight . | . . . . . . . . . . . . . . . . Fastest Speed 44 | 50 110 110 105 105 112 50 60 60 44 48 126 126 117 120 50 Average Speed 122 | 148 145 140 124 108 112 104 60 85 94 110 198 141 189 120 107 Slowest Speed 300 | 160 160 240 190 112 112 112 60 178 120 194 209 209 209 120 300 Overloaded Moves . | . . . . . . . . . . . . . . . . Propulsion Burnouts . | . . . . . . . . . . . . . . . . Robots Hopped . | . . . . . . . . . . . . . . . . Potential Cave-ins . | . . . . . . . . . . . . . . . . Cave-ins Triggered . | . . . . . . . . . . . . . . . . Exploration Rate (%) 51 | 3 52 83 41 61 98 86 16 15 18 77 68 92 32 . 30 Regions Visited 15 Branch Regions 7 Pre-discovered Areas 9 | . . . . . 4 5 . . . . . . . . . Known Exits Taken 6 | . . . 1 . . 1 1 1 1 . . 1 . . . Unknown Exits Taken 9 | 1 1 1 . 1 1 . . . . 1 1 . 1 1 . Scrap Searched 4 | . . . . . . 4 . . . . . . . . . Spaces Dug 63 | . . 30 18 . . . 4 1 10 . . . . . . Terrain Destroyed 277 | . . 37 52 . . . 4 1 85 27 15 . 34 . 22 Melee 12 | . . 1 . . . . 4 1 6 . . . . . . Projectile 83 | . . . . . . . . . 4 23 . . 34 . 22 AOE 182 | . . 36 52 . . . . . 75 4 15 . . . . Terrain Rammed . | . . . . . . . . . . . . . . . . Walls Destroyed . | . . . . . . . . . . . . . . . . Machines Disabled . | . . . . . . . . . . . . . . . . Actions | -11 -10 -9 -8 -8 -8 -8 -6 -5 -4 -4 -4 -4 -3 -2 -2 --------- Run | Yrd Mat Mat Mat Sto Rec Scr Fac Fac Fac Ext Cet Arc Res Res Tes Total 10573 | 129 358 1067 663 744 550 1686 451 878 806 1197 231 359 1166 19 269 Wait 990 | 12 13 72 55 89 8 265 77 248 31 52 3 27 21 . 17 Move 7951 | 92 296 830 477 533 528 1387 356 524 623 723 184 243 945 14 196 Hop . | . . . . . . . . . . . . . . . . Pick Up 147 | 5 7 23 20 9 . 9 5 7 8 30 5 2 16 . 1 Fast Attach 105 | 7 3 9 2 2 . 1 1 14 14 21 2 5 19 . 5 Attach 84 | . 3 6 7 . . . 4 8 17 14 3 2 12 3 5 Detach 14 | . . 1 . 1 . . . . 3 5 1 . 1 . 2 Swap 122 | 1 3 21 15 11 1 4 1 11 11 11 7 5 18 1 1 Drop 167 | 2 5 21 23 15 . 13 3 10 13 26 5 3 26 1 1 Fire 452 | 10 28 49 6 . . . . . 10 107 21 72 108 . 41 Melee 333 | . . 35 58 84 13 7 4 56 76 . . . . . . Ram 2 | . . . . . . . . . . 2 . . . . . Kick 1 | . . . . . . . . . . 1 . . . . . Crush . | . . . . . . . . . . . . . . . . Escape Stasis 31 | . . . . . . . . . . 31 . . . . . Rewire 174 | . . . . . . . . . . 174 . . . . . Trap . | . . . . . . . . . . . . . . . . Miscellaneous . | . . . . . . . . . . . . . . . . Route ------- -11/Scrapyard -10/Materials (discovered 2 exits: *Mat / [*Min]) -9/Materials (discovered 4 exits: *Mat x2 / *Min x2) -8/Materials -8/Storage -8/Recycling (discovered 2 exits: *Fac / *Scr) -8/Scraptown (discovered 2 exits: *Fac x2) -6/Factory (discovered 4 exits: *Fac x3 / Low) -5/Factory -4/Factory (discovered 5 exits: Res x4 / *Ext) -4/Extension (discovered 3 exits: *Res x2 / *Cet) -4/Cetus (discovered 2 exits: *Res / [*Arc]) -4/Archives (discovered 3 exits: *Res / [*Hub x2]) -3/Research -2/Research (discovered 2 exits: Acc / *Tes) -2/Testing (discovered 1 exit: *Acc) History --------- Turn | Location | Event 6 | -11/Scrapyard | Discovered new exit (range 16) 198 | -11/Scrapyard | Entered Materials 199 | -10/Materials | Met a group of wandering Federalists 310 | -10/Materials | Build established: Mutant 512 | -10/Materials | Discovered new exit (range 7) 647 | -10/Materials | Core integrity fell below 50% 659 | -10/Materials | Discovered new exit (range 8) 739 | -10/Materials | Entered another Materials area 739 | -9/Materials | Evolved 2 slots: Utility x2 998 | -9/Materials | Discovered new exit (range 13) 1103 | -9/Materials | Lost 5 parts (1p2n1u1w) 1378 | -9/Materials | Build established: Scavenger-Mutant 1530 | -9/Materials | Core integrity fell below 50% 1943 | -9/Materials | Discovered new exit (range 12) 1985 | -9/Materials | Discovered new exit (range 8) 2178 | -9/Materials | Identified exit to Mines 2255 | -9/Materials | Entered another Materials area 2255 | -8/Materials | Evolved 2 slots: Propulsion x2 2394 | -8/Materials | Identified exit to Storage 2406 | -8/Materials | Build established: Gladiator 3033 | -8/Materials | Central database locked down 3138 | -8/Materials | Entered Storage 3573 | -8/Storage | Used back door to open Recycling access 3573 | -8/Storage | Discovered new exit (range 4) 3660 | -8/Storage | Central database locked down 3760 | -8/Storage | Core integrity fell below 50% 4071 | -8/Storage | Entered Recycling 4290 | -8/Recycling | Discovered new exit (range 5) 4432 | -8/Recycling | Scanned before Scraplab entrance 4698 | -8/Recycling | Entered Scraplab 4707 | -8/Recycling | Discovered new exit (range 3) 4709 | -8/Recycling | Entered Scraptown 5124 | -8/Scraptown | Visited Assassins FH 5152 | -8/Scraptown | Visited UFD Registry 5152 | -8/Scraptown | Registered with UFD as "Alphasplitter" 5193 | -8/Scraptown | Visited Comm Corps 5246 | -8/Scraptown | Visited Fellowship of the Rings 5264 | -8/Scraptown | Visited Red Mages 5325 | -8/Scraptown | Visited CPS Storage 5370 | -8/Scraptown | Visited Junk Repository 5403 | -8/Scraptown | Visited Curators Association 5446 | -8/Scraptown | Visited Scrapoid Research Area 5586 | -8/Scraptown | Visited Science Guys 5641 | -8/Scraptown | Visited Infowarlord's Domain 5669 | -8/Scraptown | Visited Research Penetration Think Tank 5697 | -8/Scraptown | Visited Junk Repository 5734 | -8/Scraptown | Visited Chapter 10 5752 | -8/Scraptown | Visited Cartography Club 5813 | -8/Scraptown | Learned location of Upper Caves (-5) 5813 | -8/Scraptown | Learned location of Hub_04(d) (-4) 5813 | -8/Scraptown | Learned location of Testing (-2) 5813 | -8/Scraptown | Learned 24 Factory zone layouts 5813 | -8/Scraptown | Learned 8 Access zone layouts 5813 | -8/Scraptown | Learned 4 Mines zone layouts 5813 | -8/Scraptown | Learned 4 Recycling zone layouts 5813 | -8/Scraptown | Learned 16 Lower Caves zone layouts 5813 | -8/Scraptown | Learned 20 Lower Caves zone layouts 5813 | -8/Scraptown | Learned 24 Proximity Caves zone layouts 5813 | -8/Scraptown | Learned location of 3 exits from Lower Caves 5813 | -8/Scraptown | Learned 16 Proximity Caves zone layouts 5813 | -8/Scraptown | Learned location of 1 exit from Proximity Caves 5955 | -8/Scraptown | Met Optimus 5955 | -8/Scraptown | Accepted into 0bPrime 6297 | -8/Scraptown | Civil war broke out across Scraptown 6316 | -8/Scraptown | Found Ballwheel 6322 | -8/Scraptown | Found DM-GVY's Chainsaw 6373 | -8/Scraptown | Identified exit to Factory 6441 | -8/Scraptown | Optimus destroyed in the chaos of civil war 6466 | -8/Scraptown | Entered Factory 6466 | -6/Factory | Evolved 4 slots: Utility x3, Weapon x1 6467 | -6/Factory | Identified exit to Factory 6467 | -6/Factory | Identified exit to Lower Caves 6487 | -6/Factory | Lost 17 allies 6559 | -6/Factory | Central database locked down 6739 | -6/Factory | Fabricated K-01 Serf (x4) 6780 | -6/Factory | Build established: Hacker-Gladiator 6783 | -6/Factory | Entered another Factory area 6783 | -5/Factory | Evolved 2 slots: Utility x2 6802 | -5/Factory | Central database locked down 6829 | -5/Factory | Discovered new exit (range 5) 6835 | -5/Factory | Identified exit to Factory 7121 | -5/Factory | Fabricated Adv. Coolant Injector? 7210 | -5/Factory | Repaired Carbon-fiber Leg+ 7507 | -5/Factory | System corruption reached 10% 7674 | -5/Factory | Entered another Factory area 7674 | -4/Factory | Evolved 2 slots: Power x1, Propulsion x1 7675 | -4/Factory | Identified exit to Research 8346 | -4/Factory | System corruption reached 10% 8374 | -4/Factory | Core integrity fell below 50% 8406 | -4/Factory | Lost 16 parts (2p7n3u4w) 8509 | -4/Factory | Discovered new exit (range 6) 8510 | -4/Factory | Identified exit to Extension 8511 | -4/Factory | Entered Extension 8553 | -4/Extension | Rescued A7 8955 | -4/Extension | Rescued a captive Derelict 9011 | -4/Extension | First assault squad dispatched 9046 | -4/Extension | Rescued a captive Derelict 9059 | -4/Extension | Lost 6 allies 9186 | -4/Extension | Lost 6 allies 9276 | -4/Extension | Spotted B-86 Titan 9303 | -4/Extension | Destroyed B-86 Titan 9304 | -4/Extension | Spotted B-86 Titan 9323 | -4/Extension | Allies destroyed B-86 Titan 9353 | -4/Extension | Extracted ID and sensor layout for unrecognized location from A7's data core 9371 | -4/Extension | Found Prototype Protection 9371 | -4/Extension | Identified Med. Regenerative Plating 9394 | -4/Extension | Lost 4 allies 9424 | -4/Extension | Rescued a captive Derelict 9426 | -4/Extension | Rescued a captive Derelict 9489 | -4/Extension | Build established: Scavenger-Mutant 9683 | -4/Extension | Lost 8 parts (3n4u1w) 9786 | -4/Extension | Disrupted transfer network 9843 | -4/Extension | Rescued a captive Derelict 9895 | -4/Extension | Discovered exit to Research (range 10) 9897 | -4/Extension | Discovered new exit (range 6) 9907 | -4/Extension | Entered Cetus 9907 | -4/Cetus | Accompanied by 1 ally 9936 | -4/Cetus | Spotted Cetus Guard 9938 | -4/Cetus | Spotted Cetus Guard 9939 | -4/Cetus | Spotted Cetus Guard 9942 | -4/Cetus | Spotted Cetus Guard 9944 | -4/Cetus | Destroyed Cetus Guard 9949 | -4/Cetus | Destroyed Cetus Guard 9950 | -4/Cetus | Destroyed Cetus Guard 9952 | -4/Cetus | Destroyed Cetus Guard 9981 | -4/Cetus | Build established: Scavenger-Tank 10171 | -4/Cetus | Discovered new exit (range 16) 10212 | -4/Cetus | Spotted Cetus Guard 10212 | -4/Cetus | Spotted Cetus Guard 10214 | -4/Cetus | Spotted Cetus Guard 10217 | -4/Cetus | Spotted Cetus Guard 10218 | -4/Cetus | Destroyed Cetus Guard 10218 | -4/Cetus | Destroyed Cetus Guard 10221 | -4/Cetus | Destroyed Cetus Guard 10221 | -4/Cetus | Destroyed Cetus Guard 10238 | -4/Cetus | Discovered exit to Research (range 16) 10250 | -4/Cetus | Met Revision 17 10336 | -4/Cetus | Entered Archives 10496 | -4/Archives | Discovered new exit (range 16) 10669 | -4/Archives | Discovered new exit (range 13) 10865 | -4/Archives | Discovered exit to Research (range 16) 10884 | -4/Archives | Entered Research 10884 | -3/Research | Evolved 2 slots: Utility x2 11084 | -3/Research | Revision forces began assault on 0b10 11092 | -3/Research | Met up with Revision 17++ 11584 | -3/Research | Research terminal network offline 11751 | -3/Research | Watched by a mysterious "MATRIX" hacker. 12110 | -3/Research | Found Prototype Launcher 12111 | -3/Research | Identified Tactical Quantum Warhead 12504 | -3/Research | Spotted Striker 12550 | -3/Research | Spotted Striker 12556 | -3/Research | Destroyed Striker 12627 | -3/Research | Spotted Striker 12655 | -3/Research | Destroyed Striker 12769 | -3/Research | Spotted Striker 12772 | -3/Research | Destroyed 7 combat bots 12772 | -3/Research | Spotted Striker 12779 | -3/Research | Destroyed Striker 12807 | -3/Research | Lost 14 parts (3p2n6u3w) 12807 | -3/Research | Destroyed Striker 12872 | -3/Research | Discovered new exit (range 15) 12883 | -3/Research | Spotted Striker 12912 | -3/Research | Destroyed Striker 12933 | -3/Research | Lost 3 allies 12945 | -3/Research | Lost 5 parts (3n2u) 13005 | -3/Research | Spotted Striker 13017 | -3/Research | Spotted Executioner 13034 | -3/Research | Entered another Research area 13034 | -2/Research | Evolved 2 slots: Propulsion x2 13035 | -2/Research | Identified exit to Access 13044 | -2/Research | Discovered new exit (range 10) 13054 | -2/Research | Lost 4 allies 13056 | -2/Research | Entered Testing 13059 | -2/Testing | Build established: Scavenger-Mutant 13329 | -2/Testing | System corruption reached 10% 13366 | -2/Testing | Core integrity fell below 50% 13368 | -2/Testing | Released all parts (6) 13371 | -2/Testing | Lost 20 parts (2p9n8u1w) 13377 | -2/Testing | Core integrity fell below 20% 13392 | -2/Testing | Discovered exit to Access (range 16) 13397 | -2/Testing | Released all parts (1) 13400 | -2/Testing | Destroyed by G-73 Enforcer with Phase Gun Last Messages --------------- 13374_ K-01 Serf collects debris. 13374_ Penetrated by Slug. 13375_ Critical hit (Burn: +37). 13375_ R-10 Processor collects Adv. Remote Datajack. 13377_ Acquired Imp. Antigrav System. 13377_ K-01 Serf collects debris. 13379_ Slug penetrates Wall. 13380_ Acquired Imp. Antigrav System. 13381_ R-10 Processor collects Mic. Antimatter Reactor. 13382_ K-01 Serf collects debris. 13388_ MG G5FE%8=IPFVMB&WOCB0|RNB 13388_ O-16 Technician sends out distress signal. 13388_ O-16 Technician: "IFF HANDSHAKE FAILED. SECURING TERMINAL." 13392_ EXIT=FOUND: ACCESS 13392_ Imp. Antigrav System destroyed. 13397_ Released Particle Reactor. Map ----- +----------------------------------------------------+ | | | | | | | | | | | | | | | ?????????????????????????????????????????????????? | | ??########???????????????????????????????????????? | | ??# T #???????????????????????????????????????? | | ??# #???????????????????????????????????????? | | ??# *#???????????????????????????????????????? | | ### #???????????????????????????????????????? | | + ! #???????????????????????????????????????? | | ###################?####?????????????????????????? | | =[/] #???#"""""""#?# T"?????????????????????????? | | [!*!*#???# """"" #?# "?????????????????????????? | | %!!]*=#???# """" #?# "?????????????????????????? | | [= #???# "" " "#?# "?????????????????????????? | | !/ #???# #?# #?????????????????????????? | | ] #???# #?# #?????????????????????????? | | #############+####### #########?????????????????? | | g #?????????????????? | | o ggg < #?????????????????? | | #?????????????????? | | * @ u #?????????????????? | | ######################## A####?????????????????? | | ???????????????????????# #????????????????????? | | ???????????????????????# #????????????????????? | | ???????????????????????# #????????????????????? | | ???????????????????????# #????????????????????? | | ???????????????????????# #????????????????????? | | ???????????????????"""?# #????????????????????? | | ???????????????????"""?# #????????????????????? | | ???????????????????"""?# #????????????????????? | | ???????????????????????# #????????????????????? | | ???????????????????????+ #????????????????????? | | ????????????????????""?# #????????????????????? | | ????????????????????""?? #????????????????????? | | ????????????????????T"?? #????????????????????? | | ????????????????????""?? ?????????????????????? | | ????????????????????""???????????????????????????? | | ?????????????????????????????????????????????????? | | ?????????????????????????????????????????????????? | | ???????????????????????????????????????????????? | | ???????????????????????????????????????????????? | | ???????????????????????????????????????????????? | | ?????????????????????????????????????????????????? | | ?????????????????????????????????????????????????? | | ?????????????????????????????????????????????????? | +----------------------------------------------------+ Best States ------------- Heat Dissipation 119 Coolant Potential 100 Energy Generation 45 Energy Capacity 525 Matter Stores 300 Matter Capacity 300 Sight Range 22 Robot Scan Range 16 Terrain Scan Density 10 Armor Coverage 1150 Resistance: KI 30 Resistance: TH 25 Propulsion Shielding 66 Weapon Cycling 20 Melee Speed Boost 50 Evasion (%) 56 Targeting Accuracy 6 Melee Accuracy 15 Recoil Reduction 2 Kinecelleration 40 Offensive Hacking 26 Defensive Hacking 14 Item Schematics ----------------- None Robot Schematics ------------------ None Fabricated ------------ K-01 Serf | x4 | -6/Factory | Preloaded Adv. Coolant Injector | x2 | -5/Factory | Preloaded Repaired ---------- Carbon-fiber Leg | 1% | -5/Factory Studied --------- Axe | -8/Materials | Hacked Carbon-fiber Leg | -8/Materials | Hacked Flail | -6/Factory | Hacked Shock Bomb Launcher | -6/Factory | Hacked Imp. Titanium Leg | -5/Factory | Hacked Imp. Deuterium Engine | -5/Factory | Hacked Alien Tech Used ----------------- None Achievements -------------- Physics Protects Challenges ------------ None Game ------ Seed LongswordScrapHarness Manual? 0 Play Time 02:26:26 Cumulative 125.6 hours Start 2026.03.16 @ 02:16:14 End 2026.03.16 @ 12:10:26 Sessions 3 Manual Loads 0 Difficulty Rogue Special Mode None Game No. 103 Rogue 103 Adventurer 0 Explorer 0 Win Type - Total 2 Types 2/0/0/0/0/0/0/0/0/0 Lore% 67 Gallery% 55 Achievement% 48 Wizard Run 0 Options --------- Layout 2 ASCII 0 Keyboard 0 Movement Mouse Keybinds 0 Fullscreen 1 Font 24/Smallcaps Map View 50x44 Zoom Use 0% Tactical HUD 1 Map Filters NONE Filters NONE Steam 1 RUN: 7fdb97c9-283d-475b-b0a6-46fe08ce6495